bitfinex/quotes_BTCUSD_20241123
["timestamp","ask_amount","ask_price","bid_price","bid_amount"]
[1732379740429,0.15,97789.0,97754.0,0.10201427]
[1732379740638,0.15,97789.0,97755.0,0.01678918]
[1732379740907,0.15,97789.0,97756.0,0.10201427]
[1732379741327,0.15,97789.0,97757.0,0.023]
[1732379741540,0.15,97789.0,97758.0,0.10201427]
[1732379745776,0.001717,97794.0,97758.0,0.10201427]
[1732379747742,0.15,97789.0,97758.0,0.10201427]
[1732379748015,0.001717,97794.0,97759.0,0.12260143]
[1732379748258,0.001717,97794.0,97769.0,0.10201427]
[1732379748506,0.001717,97794.0,97775.0,0.023]
[1732379748766,0.001717,97794.0,97770.0,0.023]
[1732379748767,0.001717,97794.0,97781.0,0.023]
[1732379749045,0.001717,97794.0,97783.0,0.023]
[1732379749286,0.001717,97794.0,97787.0,0.10201427]
[1732379749531,0.001717,97794.0,97793.0,0.14951427]
[1732379749769,0.001717,97794.0,97793.0,0.45436771]
[1732379750003,0.001717,97794.0,97793.0,0.51980448]
[1732379750819,0.001717,97794.0,97793.0,0.47045104]
[1732379751055,0.001717,97794.0,97793.0,0.51980448]
[1732379751287,0.00107958,97794.0,97793.0,0.49680448]
[1732379751802,0.13432115,97844.0,97793.0,0.49680448]
[1732379751803,0.08954743,97842.0,97807.0,0.2]
[1732379752079,0.08954743,97848.0,97812.0,0.28185344]
[1732379752343,0.22386858,97851.0,97820.0,0.10201427]
[1732379752612,0.40296344,97857.0,97821.0,0.10201427]
[1732379752613,0.08954743,97854.0,97821.0,0.10201427]
[1732379752863,0.2686423,97873.0,97822.0,0.01513677]
[1732379752864,0.1975586,97850.0,97822.0,0.01513677]
[1732379753077,0.1975586,97850.0,97823.0,0.10201427]
[1732379753296,0.10801117,97840.0,97823.0,0.10201427]
[1732379753944,0.10801117,97860.0,97823.0,0.10201427]
[1732379753945,0.10801117,97833.0,97823.0,0.10201427]
[1732379754828,0.10801117,97833.0,97812.0,0.0825]
[1732379755058,0.10801117,97822.0,97813.0,0.10201427]
[1732379755970,0.10801117,97822.0,97801.0,0.0825]
[1732379756189,0.15,97839.0,97802.0,0.10201427]
[1732379756423,0.10801117,97840.0,97812.0,0.04935344]
[1732379756667,0.25208124,97850.0,97813.0,0.10201427]
[1732379756958,0.16205289,97850.0,97814.0,0.01513677]
[1732379757177,0.16205289,97850.0,97815.0,0.10201427]
[1732379757815,0.15,97849.0,97815.0,0.10201427]
[1732379758692,0.023,97848.0,97815.0,0.10201427]
[1732379759145,0.023,97849.0,97817.0,0.0825]
[1732379759357,0.023,97849.0,97818.0,0.13015104]
[1732379759984,0.0017166,97850.0,97818.0,0.13015104]
[1732379760441,0.16376949,97850.0,97818.0,0.13015104]
[1732379760688,0.16205289,97840.0,97818.0,0.13015104]
[1732379760904,0.16205289,97840.0,97819.0,0.03095045]
[1732379761144,0.16205289,97840.0,97820.0,0.10201427]
[1732379761870,0.16205289,97840.0,97817.0,0.0825]
[1732379762143,0.023,97829.0,97802.0,0.0825]
[1732379762390,0.16205289,97820.0,97803.0,0.10201427]
[1732379762617,0.023,97819.0,97788.0,0.0825]
[1732379762829,0.16205289,97810.0,97789.0,0.10201427]
[1732379763357,0.16205289,97810.0,97758.0,0.04230578]
[1732379763358,0.16205289,97800.0,97775.0,0.0825]
[1732379763589,0.023,97809.0,97776.0,0.10201427]
[1732379763590,0.16205289,97790.0,97776.0,0.10201427]
[1732379764136,0.16205289,97790.0,97764.0,0.0825]
[1732379764137,0.023,97789.0,97764.0,0.0825]
[1732379764367,0.16205289,97781.0,97758.0,0.0008583]
[1732379764658,0.16205289,97772.0,97758.0,0.0008583]
[1732379765127,0.15,97771.0,97758.0,0.0008583]
[1732379765833,0.14969711,97771.0,97758.0,0.0008583]
[1732379766274,0.023,97782.0,97758.0,0.10287257]
[1732379766499,0.023,97799.0,97759.0,0.11230153]
[1732379766757,0.24335289,97800.0,97758.0,0.0008583]
[1732379766758,0.0813,97769.0,97758.0,0.0008583]
[1732379766995,0.14934956,97768.0,97758.0,0.0008583]
[1732379767213,0.12501427,97768.0,97758.0,0.0008583]
[1732379767698,0.15,97767.0,97758.0,0.0008583]
[1732379767920,0.15,97769.0,97758.0,0.0008583]
[1732379768152,0.173,97782.0,97758.0,0.0008583]
[1732379768403,0.16205289,97770.0,97758.0,0.0008583]
[1732379768658,0.15,97769.0,97758.0,0.0008583]
[1732379769111,0.16205289,97780.0,97758.0,0.0008583]
[1732379769112,0.023,97779.0,97758.0,0.0008583]
[1732379769342,0.173,97779.0,97758.0,0.0008583]
[1732379769872,0.15,97779.0,97759.0,0.17901427]
[1732379770105,0.0813,97796.0,97759.0,0.17901427]
[1732379770106,0.0813,97796.0,97760.0,0.01798726]
[1732379770354,0.16205289,97790.0,97761.0,0.10201427]
[1732379770623,0.0813,97796.0,97761.0,0.10201427]
[1732379770624,0.16205289,97780.0,97761.0,0.10201427]
[1732379771074,0.16205289,97780.0,97740.0,0.1533309]
[1732379771356,0.16205289,97780.0,97710.0,0.36205289]
[1732379771357,0.16205289,97780.0,97741.0,0.25201427]
[1732379771604,0.16205289,97780.0,97742.0,0.02520143]
[1732379771839,0.16205289,97780.0,97743.0,0.10201427]
[1732379772078,0.16205289,97770.0,97743.0,0.10201427]
[1732379772356,0.16205289,97770.0,97728.0,0.15]
[1732379772357,0.16205289,97760.0,97717.0,0.1533309]
[1732379772600,0.16205289,97760.0,97733.0,0.10201427]
[1732379772829,0.16205289,97750.0,97733.0,0.10201427]
[1732379773064,0.16205289,97760.0,97733.0,0.10201427]
[1732379773335,0.023,97764.0,97734.0,0.11230143]
[1732379773336,0.15,97764.0,97734.0,0.11230143]
[1732379773595,0.15,97764.0,97734.0,0.10201427]
[1732379774106,0.15,97764.0,97735.0,0.077]
[1732379774410,0.16205289,97750.0,97719.0,0.077]
[1732379774899,0.0813,97749.0,97713.0,0.0454]
[1732379776198,0.16205289,97750.0,97713.0,0.0454]
[1732379776453,0.08974307,97785.0,97713.0,0.0454]
[1732379776454,0.15,97759.0,97733.0,0.10201427]
[1732379776712,0.15,97759.0,97734.0,0.08728716]
[1732379776976,0.16205289,97780.0,97734.0,0.08728716]
[1732379776977,0.0466691,97789.0,97745.0,0.10201427]
[1732379777212,0.16205289,97780.0,97746.0,0.01020143]
[1732379777474,0.16205289,97780.0,97747.0,0.10201427]
[1732379778700,0.15,97779.0,97747.0,0.10201427]
[1732379779151,0.00978731,97788.0,97747.0,0.10201427]
[1732379780537,0.15,97779.0,97747.0,0.10201427]
[1732379781013,0.15,97779.0,97735.0,0.0454]
[1732379781014,0.16205289,97760.0,97735.0,0.0454]
[1732379781249,0.15,97769.0,97736.0,0.11536872]
[1732379781494,0.15,97759.0,97736.0,0.11536872]
[1732379781730,0.15,97749.0,97723.0,0.077]
[1732379782170,0.15,97749.0,97708.0,0.0454]
[1732379782411,0.15,97749.0,97714.0,0.077]
[1732379784616,0.15,97759.0,97714.0,0.2303309]
[1732379785078,0.01866824,97758.0,97733.0,0.10201427]
[1732379785300,0.01866824,97766.0,97733.0,0.10201427]
[1732379785525,0.15,97767.0,97733.0,0.10201427]
[1732379785526,0.01866824,97765.0,97733.0,0.10201427]
[1732379785741,0.15,97767.0,97734.0,0.06028716]
[1732379786021,0.16205289,97760.0,97735.0,0.10201427]
[1732379786234,0.15,97759.0,97735.0,0.10201427]
[1732379786494,0.15,97759.0,97732.0,0.5008573]
[1732379786918,0.15,97759.0,97733.0,0.10201427]
[1732379787150,0.01866824,97763.0,97733.0,0.10201427]
[1732379787377,0.15,97769.0,97734.0,0.06028716]
[1732379787378,0.01866824,97762.0,97734.0,0.06028716]
[1732379787633,0.01866824,97774.0,97735.0,0.17881427]
[1732379787865,0.01866824,97778.0,97735.0,0.17307014]
[1732379788102,0.01866824,97778.0,97737.0,0.1533309]
[1732379788374,0.0779,97787.0,97737.0,0.1533309]
[1732379788375,0.01866824,97786.0,97738.0,0.1533309]
[1732379788611,0.16205289,97770.0,97739.0,0.10201427]
[1732379788841,0.16205289,97770.0,97740.0,0.02038192]
[1732379789067,0.16205289,97770.0,97740.0,0.10201427]
[1732379789574,0.16866824,97769.0,97740.0,0.10201427]
[1732379790041,0.01866824,97768.0,97740.0,0.10201427]
[1732379790277,0.01866824,97767.0,97740.0,0.10201427]
[1732379790528,0.01866824,97766.0,97741.0,0.01020143]
[1732379790762,0.15,97769.0,97741.0,0.01020143]
[1732379790763,0.01866824,97765.0,97741.0,0.01020143]
[1732379791027,0.15,97769.0,97741.0,0.01020143]
[1732379791028,0.01866824,97764.0,97741.0,0.01020143]
[1732379791275,0.15,97769.0,97740.0,0.10201427]
[1732379791276,0.01866824,97763.0,97742.0,0.01122157]
[1732379791556,0.01866824,97763.0,97743.0,0.01132358]
[1732379791790,0.15,97779.0,97743.0,0.10201427]
[1732379791791,0.01875827,97762.0,97743.0,0.10201427]
[1732379792081,0.01875827,97778.0,97743.0,0.25534517]
[1732379792335,0.0487715,97777.0,97744.0,0.02553452]
[1732379792557,0.0487715,97776.0,97745.0,0.10201427]
[1732379792781,0.01875827,97775.0,97745.0,0.10201427]
[1732379793009,0.01875827,97774.0,97745.0,0.10201427]
[1732379793232,0.15,97784.0,97746.0,0.03282797]
[1732379793233,0.01875827,97773.0,97746.0,0.03282797]
[1732379793450,0.01875827,97772.0,97747.0,0.10201427]
[1732379793699,0.15,97784.0,97747.0,0.10201427]
[1732379793700,0.01875827,97771.0,97748.0,0.03355731]
[1732379793971,0.01875827,97770.0,97749.0,0.10201427]
[1732379794191,0.01875827,97769.0,97749.0,0.10201427]
[1732379794436,0.01875827,97768.0,97742.0,0.0474]
[1732379794670,0.15,97769.0,97743.0,0.10201427]
[1732379794671,0.01875827,97767.0,97743.0,0.10201427]
[1732379794890,0.05183939,97766.0,97743.0,0.10201427]
[1732379795112,0.01875827,97765.0,97743.0,0.10201427]
[1732379795372,0.01875827,97764.0,97743.0,0.10201427]
[1732379795617,0.01875827,97764.0,97733.0,0.0008593]
[1732379795618,0.02047687,97763.0,97733.0,0.0008593]
[1732379795859,0.01875827,97762.0,97734.0,0.17241902]
[1732379796087,0.01875827,97761.0,97734.0,0.17241902]
[1732379796332,0.01875827,97760.0,97734.0,0.17241902]
[1732379796842,0.01875827,97759.0,97734.0,0.17241902]
[1732379797053,0.01875827,97758.0,97735.0,0.08764665]
[1732379797297,0.0017186,97763.0,97735.0,0.08764665]
[1732379797298,0.01875827,97757.0,97736.0,0.10201427]
[1732379797545,0.01875827,97756.0,97736.0,0.10201427]
[1732379797768,0.01875827,97755.0,97736.0,0.10201427]
[1732379798025,0.01881239,97754.0,97736.0,0.10201427]
[1732379798239,0.01881239,97762.0,97737.0,0.06913775]
[1732379798457,0.01881239,97761.0,97738.0,0.16930113]
[1732379798679,0.0017186,97763.0,97738.0,0.16930113]
[1732379803161,0.16205289,97750.0,97733.0,0.0008593]
[1732379803385,0.023,97748.0,97733.0,0.0008593]
[1732379803820,0.15,97749.0,97733.0,0.05103096]
[1732379804049,0.15,97749.0,97734.0,0.10201427]
[1732379804272,0.15,97761.0,97734.0,0.10201427]
[1732379804502,0.15,97761.0,97735.0,0.06539025]
[1732379804503,0.023,97760.0,97735.0,0.06539025]
[1732379804720,0.023,97760.0,97736.0,0.10201427]
[1732379805869,0.0017186,97763.0,97736.0,0.10201427]
[1732379806762,0.0787,97773.0,97733.0,0.05103096]
[1732379806763,0.08997178,97776.0,97733.0,0.20103096]
[1732379807057,0.10821744,97770.0,97735.0,0.15]
[1732379807280,0.12501427,97769.0,97735.0,0.10201427]
[1732379807745,0.10821744,97760.0,97735.0,0.10201427]
[1732379807962,0.10821744,97760.0,97734.0,0.05518883]
[1732379807963,0.023,97759.0,97733.0,0.0008593]
[1732379808189,0.10821744,97750.0,97733.0,0.0008593]
[1732379808406,0.023,97749.0,97733.0,0.0008593]
[1732379808636,0.10201427,97748.0,97733.0,0.0008593]
[1732379808856,0.023,97742.0,97733.0,0.0008593]
[1732379809119,0.12501427,97742.0,97733.0,0.0008593]
[1732379809353,0.25201427,97741.0,97733.0,0.0008593]
[1732379809792,0.023,97739.0,97733.0,0.0008593]
[1732379810013,0.27501427,97739.0,97733.0,0.0008593]
[1732379811357,0.173,97739.0,97733.0,0.0008593]
[1732379812924,0.0803,97740.0,97733.0,0.0008593]
[1732379812925,0.01881869,97738.0,97733.0,0.0008593]
[1732379813146,0.04181869,97737.0,97733.0,0.0008593]
[1732379813368,0.01881869,97736.0,97733.0,0.0008593]
[1732379813585,0.15,97739.0,97733.0,0.0008593]
[1732379813798,0.018813,97738.0,97733.0,0.05103096]
[1732379814045,0.15,97739.0,97733.0,0.0008593]
[1732379814046,0.041813,97737.0,97733.0,0.0008593]
[1732379814521,0.023,97735.0,97733.0,0.0008593]
[1732379814821,0.0803,97740.0,97733.0,0.0008593]
[1732379814822,0.018813,97734.0,97733.0,0.0008593]
[1732379815266,0.018813,97734.0,97732.0,0.27261084]
[1732379815485,0.0803,97740.0,97732.0,0.27261084]
[1732379815486,0.018813,97733.0,97732.0,0.27261084]
[1732379815707,0.018813,97733.0,97732.0,0.27063683]
[1732379815928,0.018813,97733.0,97732.0,0.29770051]
[1732379816157,0.018813,97733.0,97732.0,0.27063683]
[1732379817563,0.018813,97733.0,97732.0,0.26615243]
[1732379818016,0.16702727,97733.0,97732.0,0.26615243]
[1732379818241,0.29575376,97733.0,97732.0,0.26615243]
[1732379818477,0.41567386,97733.0,97732.0,0.26615243]
[1732379818706,0.45724125,97733.0,97732.0,0.26615243]
[1732379818922,0.44575376,97733.0,97732.0,0.26615243]
[1732379819139,0.49242286,97733.0,97732.0,0.26615243]
[1732379820734,0.4737272,97733.0,97732.0,0.26615243]
[1732379820949,0.44368337,97733.0,97732.0,0.26615243]
[1732379821195,0.4737266,97733.0,97732.0,0.26701153]
[1732379821419,0.53312283,97733.0,97732.0,0.24889697]
[1732379821641,0.4737266,97733.0,97732.0,0.24889697]
[1732379822982,0.42701502,97733.0,97732.0,0.24889697]
[1732379823414,0.39701427,97733.0,97732.0,0.24889697]
[1732379824099,0.37401427,97733.0,97732.0,0.24889697]
[1732379824686,0.25201427,97733.0,97732.0,0.24889697]
[1732379824896,0.25201427,97733.0,97701.0,0.0824]
[1732379824897,0.15,97732.0,97701.0,0.02556038]
[1732379825116,0.0758,97743.0,97702.0,0.10201427]
[1732379825319,0.0758,97743.0,97703.0,0.18150719]
[1732379825320,0.10201427,97742.0,97703.0,0.18150719]
[1732379825524,0.10201427,97742.0,97704.0,0.10201427]
[1732379826568,0.023,97740.0,97704.0,0.10201427]
[1732379826784,0.16243126,97740.0,97704.0,0.10201427]
[1732379827000,0.16243126,97740.0,97705.0,0.03311629]
[1732379827001,0.20594455,97739.0,97705.0,0.03311629]
[1732379827218,0.023,97738.0,97706.0,0.10201427]
[1732379827479,0.023,97719.0,97687.0,0.0477]
[1732379827656,0.15,97709.0,97676.0,0.0008603]
[1732379827869,0.15,97709.0,97676.0,0.0775603]
[1732379827870,0.023,97708.0,97676.0,0.0775603]
[1732379828514,0.10201427,97707.0,97676.0,0.0775603]
[1732379828733,0.023,97705.0,97676.0,0.0775603]
[1732379828949,0.15,97704.0,97676.0,0.0775603]
[1732379829177,0.023,97703.0,97676.0,0.0775603]
[1732379829395,0.02066064,97703.0,97676.0,0.0775603]
[1732379829632,0.14974419,97704.0,97676.0,0.0775603]
[1732379829863,0.02998603,97703.0,97676.0,0.0775603]
[1732379830113,0.1320003,97702.0,97676.0,0.0775603]
[1732379830326,0.04872977,97701.0,97676.0,0.0775603]
[1732379830531,0.04872977,97700.0,97676.0,0.0008603]
[1732379830742,0.04872977,97699.0,97676.0,0.0008603]
[1732379830952,0.15074404,97699.0,97676.0,0.0008603]
[1732379831370,0.17374404,97699.0,97676.0,0.0008603]
[1732379834426,0.32374404,97699.0,97676.0,0.0008603]
[1732379834644,0.45314404,97699.0,97676.0,0.0008603]
[1732379834848,0.46590228,97699.0,97676.0,0.0008603]
[1732379835489,0.15,97698.0,97672.0,0.0001511]
[1732379835701,0.02998511,97694.0,97672.0,0.0001511]
[1732379835944,0.06148473,97693.0,97672.0,0.0001511]
[1732379836150,0.06148473,97692.0,97672.0,0.0001511]
[1732379836359,0.06148473,97691.0,97672.0,0.0001511]
[1732379836609,0.06148473,97690.0,97672.0,0.0001511]
[1732379836844,0.04872546,97689.0,97672.0,0.0001511]
[1732379837056,0.04872546,97688.0,97672.0,0.0001511]
[1732379837313,0.15,97698.0,97672.0,0.0001511]
[1732379837314,0.04872546,97687.0,97672.0,0.0001511]
[1732379837559,0.04872546,97686.0,97672.0,0.0001511]
[1732379837765,0.04872546,97685.0,97672.0,0.0001511]
[1732379837976,0.04872546,97684.0,97672.0,0.0001511]
[1732379838216,0.06148473,97683.0,97672.0,0.0001511]
[1732379838422,0.06148473,97682.0,97672.0,0.0001511]
[1732379838638,0.15,97689.0,97672.0,0.0001511]
[1732379838639,0.06148473,97681.0,97672.0,0.0001511]
[1732379838850,0.04872546,97680.0,97672.0,0.0001511]
[1732379839057,0.06152276,97679.0,97672.0,0.0001511]
[1732379839269,0.06152276,97678.0,97672.0,0.0001511]
[1732379839481,0.06152276,97677.0,97672.0,0.0001511]
[1732379839713,0.06152276,97676.0,97672.0,0.0001511]
[1732379839938,0.15,97698.0,97672.0,0.0001511]
[1732379840177,0.06151522,97675.0,97672.0,0.0001511]
[1732379840404,0.01875172,97675.0,97672.0,0.0001511]
[1732379841244,0.15,97689.0,97672.0,0.0001511]
[1732379841436,0.023,97698.0,97672.0,0.0001511]
[1732379841641,0.15,97695.0,97672.0,0.0001511]
[1732379841858,0.15,97689.0,97672.0,0.0001511]
[1732379842069,0.06152195,97688.0,97672.0,0.0001511]
[1732379842281,0.01275998,97687.0,97672.0,0.0001511]
[1732379842491,0.06152195,97686.0,97672.0,0.0001511]
[1732379842724,0.06152195,97685.0,97672.0,0.0001511]
[1732379842927,0.06152195,97684.0,97672.0,0.0001511]
[1732379843153,0.06152195,97683.0,97672.0,0.0001511]
[1732379843369,0.06152195,97682.0,97672.0,0.0001511]
[1732379843596,0.04876197,97681.0,97672.0,0.0001511]
[1732379843829,0.04876197,97680.0,97673.0,0.1176268]
[1732379844040,0.0187546,97679.0,97673.0,0.1176268]
[1732379844271,0.0187546,97678.0,97673.0,0.10201427]
[1732379844495,0.04876178,97677.0,97673.0,0.10201427]
[1732379844706,0.01275897,97691.0,97673.0,0.10201427]
[1732379844707,0.04876178,97676.0,97673.0,0.10201427]
[1732379844905,0.0187546,97675.0,97656.0,0.05609314]
[1732379845137,0.04876206,97674.0,97657.0,0.10201427]
[1732379845345,0.25201427,97699.0,97657.0,0.10201427]
[1732379845346,0.04876206,97673.0,97657.0,0.10201427]
[1732379845566,0.04876206,97673.0,97645.0,0.15]
[1732379845567,0.16251779,97680.0,97672.0,0.0008599]
[1732379845797,0.0799,97682.0,97672.0,0.0008599]
[1732379845798,0.15077667,97679.0,97672.0,0.0008599]
[1732379846014,0.09153003,97678.0,97672.0,0.0008599]
[1732379846229,0.1935443,97677.0,97672.0,0.0008599]
[1732379846455,0.06152266,97676.0,97672.0,0.0008599]
[1732379846686,0.10201427,97677.0,97672.0,0.0008599]
[1732379846687,0.06152266,97675.0,97672.0,0.0008599]
[1732379846934,0.06152266,97674.0,97672.0,0.0008599]
[1732379847168,0.06152266,97673.0,97672.0,0.0008599]
[1732379848778,0.06153371,97673.0,97672.0,0.0008599]
[1732379849001,0.04877237,97673.0,97672.0,0.0008599]
[1732379849871,0.06153289,97673.0,97672.0,0.0008599]
[1732379850965,0.06154015,97673.0,97672.0,0.0008599]
[1732379851628,0.28665442,97673.0,97672.0,0.0008599]
[1732379851862,0.45965442,97673.0,97672.0,0.0008599]
[1732379852351,0.45965442,97673.0,97603.0,0.0011]
[1732379852352,0.03902456,97634.0,97603.0,0.0011]
[1732379852572,0.01876113,97633.0,97618.0,0.10201427]
[1732379852794,0.03902456,97634.0,97618.0,0.10201427]
[1732379852795,0.01998071,97632.0,97619.0,0.022536]
[1732379853021,0.01876113,97631.0,97621.0,0.15]
[1732379853251,0.01876113,97630.0,97622.0,0.10201427]
[1732379853550,0.03902456,97634.0,97622.0,0.12934885]
[1732379853551,0.01876113,97629.0,97622.0,0.12934885]
[1732379853778,0.01876113,97628.0,97623.0,0.02793489]
[1732379854057,0.03902456,97634.0,97624.0,0.10201427]
[1732379854313,0.01874394,97633.0,97624.0,0.10201427]
[1732379854564,0.01874394,97632.0,97624.0,0.10201427]
[1732379854817,0.01874394,97631.0,97624.0,0.10201427]
[1732379855048,0.03902456,97634.0,97625.0,0.01293489]
[1732379855049,0.01874394,97630.0,97625.0,0.01293489]
[1732379855318,0.01874394,97629.0,97626.0,0.10201427]
[1732379855539,0.01874394,97628.0,97626.0,0.10201427]
[1732379855757,0.01874394,97627.0,97626.0,0.10201427]
[1732379856209,0.01874394,97627.0,97626.0,0.11494916]
[1732379856435,0.01874394,97627.0,97626.0,0.10201427]
[1732379857540,0.01874394,97627.0,97615.0,0.00663]
[1732379857541,0.04875661,97627.0,97615.0,0.00663]
[1732379857750,0.04875661,97626.0,97617.0,0.15]
[1732379857976,0.04875661,97625.0,97619.0,0.15]
[1732379858178,0.03902456,97648.0,97619.0,0.15]
[1732379858179,0.01874394,97624.0,97620.0,0.10201427]
[1732379858413,0.01874394,97623.0,97620.0,0.10201427]
[1732379858646,0.05178975,97644.0,97617.0,0.0008604]
[1732379858647,0.01874394,97622.0,97617.0,0.0008604]
[1732379858865,0.0775,97625.0,97617.0,0.0008604]
[1732379858866,0.04996102,97621.0,97617.0,0.0008604]
[1732379859107,0.04874144,97620.0,97617.0,0.0008604]
[1732379859314,0.0775,97625.0,97617.0,0.0008604]
[1732379859315,0.04996102,97619.0,97617.0,0.0008604]
[1732379859546,0.04874144,97618.0,97617.0,0.0008604]
[1732379860267,0.01874394,97618.0,97617.0,0.0008604]
[1732379861407,0.04872397,97618.0,97617.0,0.0008604]
[1732379861883,0.06149156,97618.0,97617.0,0.0008604]
[1732379862093,0.04872397,97618.0,97617.0,0.0008604]
[1732379862546,0.06149134,97618.0,97617.0,0.0008604]
[1732379863217,0.04872397,97618.0,97617.0,0.0008604]
[1732379863870,0.01874394,97618.0,97617.0,0.0008604]
[1732379864128,0.11652456,97634.0,97617.0,0.0008604]
[1732379864129,0.00121958,97633.0,97617.0,0.0008604]
[1732379864380,0.03902456,97634.0,97620.0,0.10846526]
[1732379864608,0.01874254,97632.0,97621.0,0.1239137]
[1732379864832,0.01996212,97631.0,97621.0,0.10201427]
[1732379865060,0.01874254,97630.0,97621.0,0.10201427]
[1732379865303,0.00121958,97629.0,97622.0,0.01095047]
[1732379865542,0.00121958,97633.0,97623.0,0.10201427]
[1732379865814,0.03902456,97634.0,97623.0,0.10201427]
[1732379865815,0.00121958,97632.0,97623.0,0.10201427]
[1732379866055,0.00121958,97632.0,97624.0,0.01028747]
[1732379866772,0.00121958,97633.0,97624.0,0.01028747]
[1732379867011,0.03902456,97634.0,97624.0,0.01028747]
[1732379867012,0.00121958,97632.0,97624.0,0.01028747]
[1732379867229,0.00121958,97632.0,97625.0,0.01123017]
[1732379867714,0.03120761,97641.0,97625.0,0.01123017]
[1732379867959,0.01996308,97640.0,97625.0,0.01123017]
[1732379868185,0.01996308,97640.0,97617.0,0.0008604]
[1732379868186,0.15720011,97640.0,97617.0,0.0008604]
[1732379868416,0.03902456,97642.0,97617.0,0.0008604]
[1732379868417,0.023,97638.0,97617.0,0.0008604]
[1732379868635,0.04995417,97637.0,97617.0,0.0008604]
[1732379868865,0.04873459,97636.0,97617.0,0.0008604]
[1732379869097,0.127,97634.0,97617.0,0.0008604]
[1732379869313,0.04995417,97633.0,97617.0,0.0008604]
[1732379869542,0.04873459,97632.0,97617.0,0.0008604]
[1732379869774,0.15196844,97631.0,97617.0,0.0008604]
[1732379869999,0.07173459,97630.0,97617.0,0.0008604]
[1732379870226,0.023,97628.0,97617.0,0.0008604]
[1732379870446,0.04995417,97627.0,97617.0,0.0008604]
[1732379870668,0.04873459,97626.0,97617.0,0.0008604]
[1732379870882,0.12501427,97628.0,97617.0,0.0008604]
[1732379870883,0.04995417,97625.0,97617.0,0.0008604]
[1732379871112,0.01874417,97624.0,97617.0,0.0008604]
[1732379871357,0.00121958,97623.0,97617.0,0.0008604]
[1732379871576,0.04871117,97622.0,97617.0,0.0008604]
[1732379871823,0.04990525,97621.0,97617.0,0.0008604]
[1732379872047,0.01994484,97621.0,97617.0,0.0008604]
[1732379872271,0.09408399,97620.0,97617.0,0.0008604]
[1732379872500,0.01994419,97619.0,97617.0,0.0008604]
[1732379872730,0.04868309,97618.0,97617.0,0.0008604]
[1732379872953,0.04990267,97618.0,97617.0,0.0008604]
[1732379873384,0.01994419,97618.0,97617.0,0.0008604]
[1732379873624,0.01994419,97618.0,97600.0,0.01752607]
[1732379873625,0.002,97617.0,97591.0,0.15]
[1732379873852,0.01994419,97616.0,97593.0,0.15]
[1732379874060,0.002,97613.0,97594.0,0.02520143]
[1732379874283,0.00075627,97617.0,97594.0,0.02520143]
[1732379874284,0.002,97610.0,97594.0,0.02520143]
[1732379874507,0.01994419,97609.0,97594.0,0.02520143]
[1732379874723,0.01872461,97608.0,97595.0,0.02772157]
[1732379874946,0.002,97615.0,97595.0,0.02772157]
[1732379874947,0.00121958,97607.0,97595.0,0.02772157]
[1732379875225,0.00121958,97616.0,97596.0,0.02797358]
[1732379875439,0.0454,97620.0,97596.0,0.02797358]
[1732379875440,0.002,97613.0,97596.0,0.02797358]
[1732379875656,0.00075627,97619.0,97593.0,0.15]
[1732379875657,0.01994135,97612.0,97597.0,0.02799879]
[1732379875877,0.01872177,97611.0,97597.0,0.02799879]
[1732379876100,0.002,97603.0,97571.0,0.15]
[1732379876333,0.00121958,97602.0,97572.0,0.13195828]
[1732379876558,0.00121958,97602.0,97573.0,0.15]
[1732379876785,0.0816,97601.0,97575.0,0.15]
[1732379877001,0.00121958,97600.0,97577.0,0.15]
[1732379877215,0.00121958,97600.0,97570.0,0.10846526]
[1732379877216,0.00121958,97600.0,97579.0,0.15]
[1732379877450,0.0474,97599.0,97581.0,0.15]
[1732379877678,0.01994999,97598.0,97582.0,0.04020143]
[1732379877899,0.01873041,97597.0,97581.0,0.25201427]
[1732379878119,0.00121958,97596.0,97581.0,0.25201427]
[1732379878347,0.0454,97599.0,97581.0,0.25201427]
[1732379878348,0.00121958,97598.0,97582.0,0.02520143]
[1732379878606,0.01873452,97595.0,97582.0,0.02520143]
[1732379878819,0.01995141,97594.0,97583.0,0.02772157]
[1732379879188,0.01873183,97593.0,97583.0,0.02772157]
[1732379879408,0.01873183,97593.0,97520.0,0.27343685]
[1732379879409,0.01873452,97595.0,97585.0,0.15]
[1732379879640,0.01873452,97595.0,97587.0,0.15]
[1732379879884,0.01873452,97595.0,97589.0,0.15]
[1732379880112,0.01873452,97595.0,97591.0,0.15]
[1732379880355,0.01873452,97595.0,97593.0,0.15]
[1732379880604,0.01873452,97595.0,97594.0,0.25201427]
[1732379881535,0.01873452,97595.0,97594.0,0.10201427]
[1732379881756,0.03750108,97595.0,97583.0,0.0008604]
[1732379881972,0.01998614,97594.0,97585.0,0.15]
[1732379882191,0.01876656,97593.0,97585.0,0.15]
[1732379882411,0.01876656,97593.0,97583.0,0.0008604]
[1732379882412,0.01998614,97592.0,97583.0,0.0008604]
[1732379882649,0.01876656,97591.0,97583.0,0.0008604]
[1732379882917,0.00121958,97590.0,97583.0,0.0008604]
[1732379883142,0.01876656,97589.0,97583.0,0.0008604]
[1732379883359,0.127,97602.0,97583.0,0.0008604]
[1732379883360,0.01998614,97588.0,97583.0,0.0008604]
[1732379883580,0.127,97602.0,97583.0,0.0008604]
[1732379883581,0.00121958,97601.0,97584.0,0.01093257]
[1732379883806,0.01876851,97600.0,97584.0,0.01093257]
[1732379884071,0.00121958,97599.0,97583.0,0.0008604]
[1732379884340,0.002,97596.0,97583.0,0.0008604]
[1732379884573,0.05001584,97595.0,97583.0,0.0008604]
[1732379884808,0.04879626,97594.0,97583.0,0.0008604]
[1732379885078,0.13161584,97593.0,97583.0,0.0008604]
[1732379885622,0.04879626,97592.0,97583.0,0.0008604]
[1732379885835,0.01876851,97591.0,97583.0,0.0008604]
[1732379886078,0.01998809,97590.0,97583.0,0.0008604]
[1732379886316,0.01876851,97589.0,97583.0,0.0008604]
[1732379886596,0.01876851,97588.0,97583.0,0.0008604]
[1732379886861,0.01876851,97587.0,97583.0,0.0008604]
[1732379887121,0.01876851,97586.0,97584.0,0.10201427]
[1732379887363,0.02997094,97611.0,97585.0,0.1721586]
[1732379887632,0.00121958,97610.0,97590.0,0.10846526]
[1732379887868,0.0488193,97610.0,97591.0,0.3062001]
[1732379888084,0.00121958,97616.0,97591.0,0.25201427]
[1732379888331,0.01877901,97615.0,97592.0,0.02731483]
[1732379888608,0.01999859,97614.0,97593.0,0.10201427]
[1732379888841,0.01999859,97614.0,97583.0,0.0008604]
[1732379888842,0.0823,97613.0,97583.0,0.0008604]
[1732379889072,0.02000118,97612.0,97585.0,0.15]
[1732379889294,0.02000118,97612.0,97590.0,0.10846526]